[Event "AUT Bundesliga 2024-25"]
[Site "Austria"]
[Date "2025.04.02"]
[Round "6.20"]
[White "Sarana, Alexey"]
[Black "Koelle, Tobias"]
[Result "1-0"]
[Annotator "TA"]
[ECO "E53"]
[WhiteElo "2672"]
[BlackElo "2459"]
[PlyCount "121"]
[EventDate "2024.08.28"]
[EventType "team-tourn"]
[EventCountry "AUT"]
[SourceTitle "playchess.com"]
[Source "ChessBase"]
[SourceQuality "1"]
[TimeControl "40/5400+30:1800+30"]

{[%evp 18,121,0,0,6,0,10,20,19,14,27,14,16,9,0,1,28,25,32,33,25,30,80,77,81,64,87,73,69,81,86,81,83,78,66,73,72,76,79,26,62,51,92,86,77,33,33,33,33,33,96,91,106,109,122,120,139,139,145,145,145,143,131,126,126,123,116,116,145,145,145,145,139,123,381,377,333,216,827,718,1190,1076,1050,833,5505,7518,10391,2274,5132,7300,6231,1265,29947,10863,29940,29940,7614,7927,4962,4955,12048,11058,29973,29974,29970,12835]} 1. d4 {[%emt 0:00:02]} Nf6 {[%emt 0:00:13]} 2. c4 {[%emt 0:00:03]} e6 {[%emt 0:00:08]} 3. Nc3 {[%emt 0:00:23]} Bb4 {[%emt 0:00:20]} 4. e3 {[%emt 0:00:09]} O-O {[%emt 0:00:05]} 5. Bd3 {[%emt 0:00:05]} d5 {[%emt 0:00:11]} 6. a3 {[%emt 0:00:35]} Bxc3+ {[%emt 0:00:06]} 7. bxc3 {[%emt 0:00:05]} dxc4 {[%emt 0:00:05]} 8. Bxc4 {[%emt 0:00:05]} c5 {[%emt 0:00:04]} 9. Nf3 {[%emt 0:01:36]} Qc7 {[%emt 0:00:08]} 10. Be2 {[%emt 0:00:40]} b6 {[%emt 0:00:05] E53: Nimzo-Indian: Rubinstein: Main Line (4...0-0 5 Nf3 d5 6 Bd3 c5 7 0-0).} 11. O-O {[%emt 0:00:31]} cxd4 {[%emt 0:00:03]} 12. cxd4 {[%emt 0:00:07]} Ba6 {[%emt 0:00:02] The position is equal.} 13. Bb2 {[%emt 0:00:33]} Bxe2 {[%emt 0:06:10]} 14. Qxe2 {[%emt 0:00:02]} Qb7 {[%emt 0:02:02]} 15. Rfe1 {[%emt 0:00:11]} Nbd7 {[%emt 0:07:57]} 16. e4 {[%emt 0:07:31]} b5 {[%emt 0:06:40]} 17. Rab1 $146 {[%emt 0:06:08]} (17. Nd2 a6 18. Nf1 Ne8 19. d5 exd5 20. exd5 Nb6 21. Ne3 f5 22. Rad1 {1-0 Koustav,C (2525)-Gedajlovic,M (2386) Budapest SixDays 07 GM-B 2024 (6)}) 17... Rac8 {[%emt 0:08:06]} 18. Bc1 {[%emt 0:12:49][%cal Oc1f4]} a6 {[%emt 0:03:37]} 19. a4 {[%emt 0:00:40]} Rfe8 {[%emt 0:12:33]} (19... b4 $11) 20. axb5 $16 {[%emt 1:08:15]} axb5 {[%emt 0:00:21]} 21. Bd2 {[%emt 0:00:00][%cal Oe4e5]} (21. Rxb5 $6 Qxe4 22. Qf1 Qc2 $15) (21. Qxb5 Qxb5 22. Rxb5 Nxe4) 21... Qc6 {[%emt 0:04:15]} 22. Qxb5 {[%emt 0:00:00]} (22. Rxb5 Nxe4 23. Ra5 Nef6 $16) 22... Qxb5 {[%emt 0:00:12]} 23. Rxb5 {[%emt 0:00:00]} Rb8 {[%emt 0:00:16] Black is weak on the dark squares} 24. Ra5 {[%emt 0:00:00] White is more active.} Ra8 {[%emt 0:01:05]} 25. h3 {[%emt 0:00:00]} Rxa5 {[%emt 0:00:31]} 26. Bxa5 {[%emt 0:03:00]} Ra8 {[%emt 0:00:10]} 27. Bc7 {[%emt 0:00:00]} h6 {[%emt 0:00:07]} 28. g4 {[%emt 0:00:00]} (28. Kf1 $16) 28... Rc8 {[%emt 0:04:02]} 29. Bd6 {[%emt 0:00:00]} Nb6 {[%emt 0:01:03]} 30. Be5 {[%emt 0:00:00]} Nbd7 {[%emt 0:03:13]} 31. Bg3 {[%emt 0:00:00]} Rc3 {[%emt 0:00:41]} 32. Kg2 {[%emt 0:00:00]} Rd3 {[%emt 0:00:39]} 33. Bd6 {[%emt 0:00:00]} Nf8 {[%emt 0:03:50]} (33... g5 $14) 34. Be7 {[%emt 0:00:00]} Ng6 {[%emt 0:04:46] [#]} 35. Bxf6 {[%emt 0:00:00]} gxf6 {[%emt 0:00:06][%mdl 4096] Endgame KRN-KRN. White is a pawn up.} 36. Re3 {[%emt 0:00:00]} Nf4+ {[%emt 0:06:51]} 37. Kg3 {[%emt 0:00:00]} Rxe3 {[%emt 0:00:10]} 38. fxe3 {[%emt 0:00:00] KN-KN. White is a pawn up.} Ne2+ {[%emt 0:00:10]} 39. Kf2 {[%emt 0:00:00]} Nc3 {[%emt 0:00:15]} 40. e5 {[%emt 0:00:00]} Kg7 {[%emt 0:02:07]} 41. exf6+ {[%emt 0:15:02]} Kxf6 {[%emt 0:30:08]} 42. Ne5 {[%emt 0:00:02]} Kg7 {[%emt 0:09:02]} 43. Kf3 {[%emt 0:00:09]} Nb5 {[%emt 0:01:23]} 44. Kf4 {[%emt 0:00:53]} f6 {[%emt 0:03:42]} 45. Nd3 {[%emt 0:01:06]} h5 $2 {[%emt 0:00:00][%mdl 8192] A mistake that costs the game.} 46. gxh5 $18 {[%emt 0:00:00]} Kh6 {[%emt 0:00:00]} 47. Kg4 {[%emt 0:00:00] [#]} Nc3 $2 {[%emt 0:00:00]} (47... Nd6 48. Nf4 e5 49. dxe5 fxe5) 48. Nf4 {[%emt 0:01:51]} e5 {[%emt 0:00:00]} 49. Ng2 {[%emt 0:00:39]} Nd5 {[%emt 0:05:58]} 50. e4 {[%emt 0:02:02]} Nc3 {[%emt 0:00:21]} 51. d5 {[%emt 0:02:44]} ({Not} 51. dxe5 fxe5 52. Kf5 Kxh5 $18) 51... Nxe4 {[%emt 0:00:15]} 52. Kf5 {[%emt 0:00:03]} Nc5 {[%emt 0:02:35]} 53. Kxf6 {[%emt 0:00:26]} e4 {[%emt 0:00:16]} 54. Ke5 {[%emt 0:00:38] aiming for Kd4.} Kxh5 {[%emt 0:00:43]} 55. Kd4 {[%emt 0:00:04]} Nd7 {[%emt 0:01:18]} 56. Kxe4 {[%emt 0:00:03]} Kg5 {[%emt 0:00:17]} 57. d6 {[%emt 0:00:24][%cal Bd5d6,Bd6d7][%mdl 32]} Kf6 {[%emt 0:01:44]} 58. Kd5 {[%emt 0:00:03]} Ne5 {[%emt 0:01:13]} 59. Ne3 {[%emt 0:00:23] Ng4+ would kill now.} Nf7 {[%emt 0:03:43]} 60. Ng4+ {[%emt 0:00:23]} Kf5 {[%emt 0:02:46]} 61. d7 {[%emt 0:00:13] Weighted Error Value: White=0.06 (flawless) /Black=0.78  Loses game:     	---       	Black=1      Mistake:       	White=1     	Black=3      Inaccurate:     	White=2     	Black=4      OK:         	White=18    	Black=12     Best:        	White=2     	Black=1} 1-0

[Event "AUT Bundesliga 2024-25"]
[Site "Austria"]
[Date "2025.04.02"]
[Round "6.21"]
[White "Deuer, Marius"]
[Black "Esipenko, Andrey"]
[Result "0-1"]
[Annotator "TA"]
[ECO "D40"]
[WhiteElo "2464"]
[BlackElo "2696"]
[PlyCount "114"]
[EventDate "2024.08.28"]
[EventType "team-tourn"]
[EventCountry "AUT"]
[SourceTitle "playchess.com"]
[Source "ChessBase"]
[SourceQuality "1"]
[TimeControl "40/5400+30:1800+30"]

{[%evp 18,114,3,0,7,0,3,7,11,5,9,0,0,0,8,25,-10,-8,0,-3,0,0,0,0,1,-10,0,-11,0,0,0,0,-4,-16,0,-17,-13,-12,0,-14,8,0,0,-10,0,-72,-66,-74,-74,-77,-82,-115,-97,-98,-68,-118,-102,-112,0,-121,-99,-132,-120,-150,-138,-219,-216,-195,-177,-180,-158,-357,-349,-329,-133,-112,-119,-119,-120,-131,-132,-141,-127,-1962,-1175,-1179,-1096,-29987,-508,-5613,-5613,-5606,-5606,-4802,-5606,-5599,-5583,-5442,-5404]} 1. d4 {[%emt 0:00:02]} Nf6 {[%emt 0:00:18]} 2. c4 {[%emt 0:00:06]} e6 {[%emt 0:00:20]} 3. Nc3 {[%emt 0:00:07]} Bb4 {[%emt 0:00:17]} 4. e3 {[%emt 0:00:10]} O-O {[%emt 0:00:30]} 5. Bd3 {[%emt 0:00:07]} d5 {[%emt 0:00:39]} 6. Nf3 {[%emt 0:00:08]} dxc4 {[%emt 0:02:28]} 7. Bxc4 {[%emt 0:00:07]} c5 {[%emt 0:00:16]} 8. O-O {[%emt 0:00:15]} Nc6 {[%emt 0:00:24]} 9. dxc5 {[%emt 0:00:56]} Bxc5 {[%emt 0:01:51]} 10. a3 {[%emt 0:00:13]} Bd6 {[%emt 0:03:59] D40: Queen's Gambit Declined: Semi-Tarrasch with 5 e3.} 11. Qe2 {[%emt 0:00:08]} a6 {[%emt 0:02:16]} 12. Bd3 {[%emt 0:09:29]} Ne5 {[%emt 0:01:14] The position is equal.} 13. Nxe5 {[%emt 0:01:29]} Bxe5 {[%emt 0:00:02]} 14. Bd2 $146 {[%emt 0:00:35][%cal Bc1d2,Bd2e1,Be1h4][%mdl 32]} (14. f4 Bxc3 15. bxc3 Bd7 16. c4 Bc6 17. Qc2 {1-0 Ollek,K-Hoeppenstein,M DESC M2015 Rd.1 Gr.01 email}) 14... Bd7 {[%emt 0:10:03]} 15. f4 {[%emt 0:16:35]} Bd6 {[%emt 0:01:19]} 16. e4 {[%emt 0:07:21]} e5 {[%emt 0:00:17]} 17. f5 {[%emt 0:02:04]} Bc5+ {[%emt 0:00:37]} 18. Kh1 {[%emt 0:09:02]} h6 {[%emt 0:01:10]} 19. Be1 {[%emt 0:06:37]} Bc6 {[%emt 0:06:08]} 20. Bh4 {[%emt 0:06:31]} Bd4 {[%emt 0:00:23]} 21. Nd5 {[%emt 0:03:47]} Bxd5 {[%emt 0:01:04]} 22. exd5 {[%emt 0:00:13]} Qd6 {[%emt 0:08:49]} 23. Bxf6 {[%emt 0:02:52]} Qxf6 {[%emt 0:00:02]} 24. Be4 {[%emt 0:02:20]} Rac8 {[%emt 0:08:19]} 25. Rac1 {[%emt 0:01:59] White is weak on the dark squares} Rfd8 {[%emt 0:06:05]} 26. a4 {[%emt 0:07:38]} Rxc1 {[%emt 0:03:30]} 27. Rxc1 {[%emt 0:00:10]} Qb6 {[%emt 0:00:03]} 28. Qc2 {[%emt 0:05:29]} Qf6 {[%emt 0:10:10]} (28... Qxb2 29. Qxb2 Bxb2 30. Rb1 $16) (28... Bxb2 {seems wilder.} 29. Qc7 Qxc7 30. Rxc7 b5) 29. b3 {[%emt 0:01:57]} h5 {[%emt 0:00:45]} 30. g3 {[%emt 0:08:07]} h4 {[%emt 0:01:44]} 31. gxh4 {[%emt 0:04:15]} (31. Qd2 $11 {keeps the balance.}) 31... Qxh4 $17 {[%emt 0:01:11]} 32. Qg2 {[%emt 0:01:15]} Be3 {[%emt 0:00:45]} 33. Rf1 {[%emt 0:00:25]} Rd6 {[%emt 0:00:15]} 34. Bc2 {[%emt 0:04:15]} Bf4 {[%emt 0:03:37][%cal Od6d5]} 35. h3 {[%emt 0:00:09]} Kf8 {[%emt 0:10:01]} 36. Bd3 {[%emt 0:01:03]} ({Better is} 36. Qg4 $15 Qxg4 37. hxg4) 36... Rb6 $36 {[%emt 0:01:52][%csl Of4][%mdl 2048] Strong Square Black (f4) Black is really pushing.} 37. Bc2 {[%emt 0:00:12]} Rd6 {[%emt 0:04:47]} 38. Bd3 $1 {[%emt 0:00:08]} Ke7 {[%emt 0:02:27]} 39. Bc2 {[%emt 0:00:36]} Rd8 {[%emt 0:01:36]} 40. Bd3 {[%emt 0:00:53]} Kd6 {[%emt 0:02:00]} 41. Rf2 {[%emt 0:08:48] [#]} (41. Be2 $17) 41... Rc8 $1 $19 {[%emt 0:01:53]} 42. Bc4 {[%emt 0:07:44]} Rc5 {[%emt 0:06:47]} 43. Rf3 {[%emt 0:08:02]} e4 {[%emt 0:09:43]} 44. Rxf4 {[%emt 0:01:44]} (44. Qf2 $17 Qxf2 (44... exf3 $2 45. Qxh4 Rxc4 46. bxc4 $18) 45. Rxf2) 44... Qxf4 {[%emt 0:00:08]} 45. Qxg7 $17 {[%emt 0:00:05][%mdl 4096] Endgame KQR-KQB} Qh4 {[%emt 0:03:33]} (45... Qxf5 46. Qf8+ Kd7 47. Qxc5 $11) (45... Qf3+ $19 {and Black stays clearly on top.} 46. Kh2 Qf4+ (46... Qxf5 47. Qf8+ Kd7 48. Qxc5 $11) (46... Qf2+ $2 47. Kh1 $19) 47. Kh1 Rc7 48. Qf6+ Kc5) 46. Qxf7 {[%emt 0:03:43]} Qxh3+ {[%emt 0:02:12]} 47. Kg1 {[%emt 0:00:01]} Qg3+ {[%emt 0:04:07]} 48. Kf1 {[%emt 0:02:21] [#]} Rc7 $1 {[%emt 0:00:26] Chess con chili.} ({Don't play} 48... Qf3+ $6 49. Ke1 Qe3+ 50. Kd1 $11) 49. Qe6+ {[%emt 0:02:04]} Kc5 {[%emt 0:00:03] ( -> ...Qf3+) Black has more active pieces.} 50. d6 $2 {[%emt 0:00:20][%mdl 8192] [#]} (50. Qxe4 $17 Rh7 51. b4+ (51. f6 $2 Rh4 $19) 51... Kxb4 52. Bd3+ (52. Bxa6+ Ka5 $17) 52... Kc5 53. f6) 50... e3 $1 {[%emt 0:04:09][%csl Ge3][%cal Rg3f2]} 51. Qd5+ {[%emt 0:00:47]} (51. Ke2 Qf2+) 51... Kb4 {[%emt 0:00:17][%csl Ge3][%cal Rg3f2]} 52. Ke2 {[%emt 0:00:31]} Rd7 {[%emt 0:00:38]} (52... Rh7 $142 53. Qf3 Rh2+ (53... Qxd6 $2 54. Qxe3 Rh5 55. Bd3 $19) 54. Kxe3 Qe5+ (54... Qxd6 $2 55. Qf4 $19) 55. Kd3 Qc3+ (55... Qxd6+ $2 56. Bd5 $19) 56. Ke4 Rh4+ 57. Kd5 Qxf3+ 58. Ke6 Rh6+ 59. Ke7 Qxf5 60. Bg8 Rg6 61. Bf7 Rg7 62. Kd8 Qxf7 63. Kc8 Rg8#) 53. Qd4 {[%emt 0:00:31]} (53. Qf3 $142 Qxd6 54. Qxe3 Qd1+ 55. Kf2 Qc2+ 56. Kg3 Qxf5 57. Qe1+ Kc5 58. Qe3+ Rd4 59. Be2) 53... Qf2+ $19 {[%emt 0:01:37]} (53... Qxd6 54. Qxd6+ Rxd6 55. Kxe3 $17) 54. Kd3 {[%emt 0:00:01]} Qxf5+ {[%emt 0:00:27]} (54... Qd2+ 55. Ke4 Qxd4+ (55... Rxd6 56. Qxe3 Qh2 57. Qe1+ Kc5 58. Qe3+ Kc6 59. a5 $17) 56. Kxd4 $15) 55. Kxe3 {[%emt 0:00:27]} Qc5 {[%emt 0:00:13]} 56. Qxc5+ {[%emt 0:00:50]} Kxc5 {[%emt 0:00:01]} 57. Kd3 {[%emt 0:00:23]} Kb4 {[%emt 0:00:06] Weighted Error Value: White=0.43/Black=0.46  Loses game:     	White=2     	---        Missed win:     	---       	Black=1      Mistake:       	White=3     	---        Inaccurate:     	White=2     	Black=2      OK:         	White=13    	Black=14     Best:        	White=5     	Black=2      Strong:       	White=1     	Black=1} 0-1

[Event "AUT Bundesliga 2024-25"]
[Site "Austria"]
[Date "2025.04.02"]
[Round "6.22"]
[White "Rodshtein, Maxim"]
[Black "Rosner, Jonas"]
[Result "1/2-1/2"]
[Annotator "TA"]
[ECO "D02"]
[WhiteElo "2647"]
[BlackElo "2430"]
[PlyCount "62"]
[EventDate "2024.08.28"]
[EventType "team-tourn"]
[EventCountry "AUT"]
[SourceTitle "playchess.com"]
[Source "ChessBase"]
[SourceQuality "1"]
[TimeControl "40/5400+30:1800+30"]

{[%evp 13,62,10,11,8,0,0,0,-7,11,5,25,16,37,9,56,62,40,44,84,0,0,0,6,2,21,19,20,19,18,25,22,22,14,18,14,8,10,0,0,-11,0,-29,-22,-37,-12,-62,-24,-39,-13,-58,-6]} 1. Nf3 {[%emt 1:31:00]} d5 {[%emt 1:31:00]} 2. g3 {[%emt 0:00:00]} g6 {[%emt 0:00:00]} 3. Bg2 {[%emt 0:00:00]} Bg7 {[%emt 0:00:00]} 4. d4 {[%emt 0:00:00]} c6 {[%emt 0:00:00]} 5. O-O {[%emt 0:00:00]} Nf6 {[%emt 0:00:00]} 6. Bf4 {[%emt 0:00:00]} O-O {[%emt 0:00:00]} 7. Qc1 {[%emt 0:00:00]} Re8 {[%emt 0:00:00] is the legacy move (7...Bf5).} 8. c4 {[%emt 0:00:00] D02: 1 d4 d5 2 Nf3 sidelines, including 2...Nf6 3 g3 and 2...Nf6 3 Bf4.} Bf5 {[%emt 0:00:00]} 9. Nbd2 {[%emt 0:00:00][%cal Bb1d2,Bd2f1,Bf1e3][%mdl 32]} Nbd7 {[%emt 0:00:00]} 10. Rd1 {[%emt 0:00:00] The position is equal.} Ne4 {[%emt 0:00:00]} 11. Nf1 $146 {[%emt 0:00:00]} (11. Nh4 Nxd2 12. Qxd2 Be6 13. cxd5 cxd5 14. Nf3 Qb6 15. Ng5 Rac8 16. Rac1 Nf6 17. Nxe6 Qxe6 {½-½ Gutman,L (2258)-Tschernatsch,J (2329) Leer op 2024 (5)}) 11... Qb6 {[%emt 0:00:00]} 12. Ne3 {[%emt 0:00:00]} Be6 {[%emt 0:00:00]} 13. Qc2 {[%emt 0:00:00]} f6 {[%emt 0:00:00]} (13... Rac8 $11) 14. Rac1 $14 {[%emt 0:00:00]} Bf7 {[%emt 0:00:00]} 15. cxd5 {[%emt 0:00:00]} cxd5 {[%emt 0:00:00]} 16. Qa4 {[%emt 0:07:30]} (16. Nd2 $16) 16... e5 $11 {[%emt 0:00:00]} 17. Qxd7 {[%emt 0:00:00][%cal Oc1c7] [#] Rc7! is the strong threat.} Rad8 {[%emt 0:00:00]} 18. Qc7 {[%emt 0:00:00]} exf4 {[%emt 0:00:00]} 19. Qxb6 {[%emt 0:00:00]} axb6 {[%emt 0:00:00]} 20. gxf4 {[%emt 0:00:00]} Bh6 {[%emt 0:00:00][%cal Bg7h6,Bh6f4,Bf4d6][%mdl 32]} 21. Ng4 {[%emt 0:00:00]} Bxf4 {[%emt 0:00:00][%cal Oh7h5] [#] Strongly threatening ...h5!.} 22. e3 {[%emt 0:00:00]} Bd6 {[%emt 0:00:00]} 23. Nh6+ {[%emt 0:00:00]} Kg7 {[%emt 0:00:00]} 24. Nxf7 {[%emt 0:00:00]} Kxf7 {[%emt 0:00:00]} 25. Ne1 {[%emt 0:00:00]} f5 {[%emt 0:00:00]} 26. Nd3 {[%emt 0:00:00]} Rc8 {[%emt 0:00:00]} 27. a4 {[%emt 0:00:00] White is weak on the dark squares} Ke6 {[%emt 0:00:00]} 28. h3 {[%emt 0:00:00]} g5 {[%emt 0:00:00]} 29. f3 {[%emt 0:00:00]} (29. Rxc8 $11 Rxc8 30. Bf3) 29... Nf6 {[%emt 0:00:00]} 30. Kf2 {[%emt 0:00:00]} h5 {[%emt 0:00:00]} 31. Ke2 {[%emt 0:02:48]} Rg8 {[%emt 0:00:10] Weighted Error Value: White=0.14 (very precise) /Black=0.11 (very precise)   Mistake:       	White=2     	Black=2      Inaccurate:     	White=2     	Black=3      OK:         	White=9     	Black=7      Best:        	White=2     	Black=1} ({Black should try} 31... Ra8 $15) 1/2-1/2

[Event "AUT Bundesliga 2024-25"]
[Site "Austria"]
[Date "2025.04.02"]
[Round "6.23"]
[White "Hacker, Jonas"]
[Black "Shimanov, Aleksandr"]
[Result "1/2-1/2"]
[Annotator "TA"]
[ECO "D37"]
[WhiteElo "2370"]
[BlackElo "2578"]
[PlyCount "76"]
[EventDate "2024.08.28"]
[EventType "team-tourn"]
[EventCountry "AUT"]
[SourceTitle "playchess.com"]
[Source "ChessBase"]
[SourceQuality "1"]
[TimeControl "40/5400+30:1800+30"]

{[%evp 9,76,39,30,29,26,27,30,18,25,17,30,27,18,18,27,27,27,22,22,0,0,0,0,0,0,0,12,30,17,14,14,2,37,21,19,13,12,13,12,24,10,10,12,10,17,8,52,70,68,71,91,87,108,91,92,0,0,0,0,0,70,0,0,0,0,0,0,0,0]} 1. d4 {[%emt 0:00:04]} d5 {[%emt 0:01:33]} 2. c4 {[%emt 0:00:08]} e6 {[%emt 0:00:35]} 3. Nf3 {[%emt 0:00:28]} Nf6 {[%emt 0:01:04]} 4. Nc3 {[%emt 0:00:19]} Nbd7 {[%emt 0:02:32]} 5. Bf4 {[%emt 0:02:27]} Bb4 {[%emt 0:01:07]} 6. cxd5 {[%emt 0:06:45] D37: Queen's Gambit Declined: 5 Bf4.} Nxd5 {[%emt 0:00:44]} 7. Bd2 {[%emt 0:00:53]} N5f6 {[%emt 0:00:08]} 8. a3 {[%emt 0:10:32] White has an edge.} Bxc3 {[%emt 0:02:00]} 9. Bxc3 {[%emt 0:00:43]} b6 {[%emt 0:01:13]} 10. e3 {[%emt 0:01:45]} Bb7 {[%emt 0:00:49]} 11. Be2 {[%emt 0:01:37]} Ne4 {[%emt 0:03:55]} 12. Rc1 {[%emt 0:01:21]} O-O {[%emt 0:01:21]} 13. O-O {[%emt 0:00:40]} Qe7 $146 {[%emt 0:09:14]} (13... c5 14. dxc5 Nxc3 15. Rxc3 Nxc5 16. b4 Ne4 17. Rc4 Rc8 18. Qxd8 Rfxd8 19. Rfc1 Rxc4 20. Rxc4 {½-½ Galaktionov,A (2338)-Sarana,A (2703) Titled Tuesday intern op 16th Apr Late blitz 2024 (7)}) 14. Bb4 {[%emt 0:06:56]} c5 {[%emt 0:00:10]} 15. dxc5 {[%emt 0:00:21]} Ndxc5 {[%emt 0:01:22]} 16. Qc2 {[%emt 0:02:44]} Rac8 {[%emt 0:06:30]} 17. Rfd1 {[%emt 0:03:08]} Qf6 {[%emt 0:07:04][%cal Oe4f2]} 18. Be1 {[%emt 0:05:53]} Ng5 {[%emt 0:19:27]} 19. Nxg5 {[%emt 0:03:16]} Qxg5 {[%emt 0:00:13][%csl Gb7][%cal Rg5g2] [#]} 20. Bf1 {[%emt 0:00:55]} Bf3 {[%emt 0:11:04]} 21. Rd4 {[%emt 0:04:42][%cal Bd1d4,Bd4c4,Bc4c3,Bc3c7,Bc7d7,Bd7d6][%mdl 32]} e5 {[%emt 0:01:42]} 22. Rc4 {[%emt 0:03:50]} Bd5 {[%emt 0:01:58]} 23. Rc3 {[%emt 0:01:06]} Be4 {[%emt 0:03:31]} 24. Qe2 {[%emt 0:03:08]} Rcd8 {[%emt 0:02:09]} 25. b4 $36 {[%emt 0:04:27][%mdl 2048] White has good play.} Nd3 {[%emt 0:08:32]} 26. Rd1 {[%emt 0:01:07]} Nxe1 {[%emt 0:00:09]} (26... Nxf2 $2 27. Bxf2 Rxd1 28. Qxd1 $18) 27. Qxe1 {[%emt 0:01:02]} h5 {[%emt 0:01:12][%cal Bh7h5,Bh5h4][%mdl 32] Counterplay White} 28. Rc7 $1 {[%emt 0:10:17]} h4 {[%emt 0:00:52][%cal Oe4g2] Strongly threatening ...Bxg2!.} 29. h3 {[%emt 0:00:31]} (29. Rxa7 $2 Bxg2 30. f4 (30. Bxg2 $2 h3 $19) 30... Qg4 $19 (30... exf4 $2 31. Bxg2 f3 32. Rd2 $19)) 29... Bf3 {[%emt 0:01:17]} 30. Rdd7 {[%emt 0:03:10]} Rxd7 {[%emt 0:02:08]} 31. Rxd7 {[%emt 0:00:02][%cal Oe1c3]} Rc8 {[%emt 0:00:06]} 32. Kh2 {[%emt 0:01:34]} (32. Rxa7 Rd8 33. Qb1 e4 $19 (33... Rd1 34. Ra8+ Bxa8 35. Qxd1 $18)) (32. b5 $16) 32... Rc6 $11 {[%emt 0:00:53][%cal Oe5e4,Bc8c6,Bc6g6,Bg6g2][%mdl 32]} 33. Qd2 {[%emt 0:04:28][%cal Od2a2]} (33. gxf3 Rg6) 33... Rg6 {[%emt 0:03:06][%cal Rf3g2]} 34. Rd6 {[%emt 0:02:31] And now Rxg6 would win.} f6 {[%emt 0:00:28] [#]} 35. e4 {[%emt 0:01:22]} Qxg2+ {[%emt 0:04:33] The position is equal.} 36. Bxg2 {[%emt 0:00:01]} Rxg2+ {[%emt 0:00:06]} 37. Kh1 {[%emt 0:00:07]} Rg3+ {[%emt 0:00:07]} (37... Bxe4 $2 {loses.} 38. Rd8+ Kf7 39. Qe2 $18 (39. Qd7+ Kg6 $11)) ({Don't play} 37... Rxf2+ $6 38. Kg1 Rxd2 39. Rxd2 Bxe4 40. Rd7 $14) 38. Kh2 {[%emt 0:00:05]} Rg2+ {[%emt 0:00:04] Weighted Error Value: White=0.09 (flawless) /Black=0.09 (flawless)   Mistake:       	White=2     	Black=1      Inaccurate:     	---       	Black=2      OK:         	White=15    	Black=12     Best:        	White=1     	Black=4      Strong:       	White=1     	---} 1/2-1/2